[Event "GrandPrix_30.05"]
[Site "Chess.com"]
[Date "2020.05.30"]
[Round "4"]
[White "TheEternalPatzer"]
[Black "TheJoker64"]
[Result "0-1"]
[WhiteElo "2017"]
[BlackElo "2229"]
[TimeControl "600+2"]
[EndTime "9:52:06 PDT"]
[Termination "TheJoker64 won by resignation"]

1. c4 {[%clk 0:10:01.9]} 1... g6 {[%clk 0:10:00]} 2. Nc3 {[%clk 0:10:01.4]} 2...
Bg7 {[%clk 0:10:00.8]} 3. e4 {[%clk 0:10:02.2]} 3... d6 {[%clk 0:10:00.9]} 4. d4
{[%clk 0:10:01.5]} 4... Nf6 {[%clk 0:10:01.5]} 5. Nf3 {[%clk 0:10:02.2]} 5...
Bg4 {[%clk 0:10:02.2]} 6. Be3 {[%clk 0:09:51.3]} 6... Nfd7 {[%clk 0:09:53.6]} 7.
Qd2 {[%clk 0:09:34.5]} 7... Bxf3 {[%clk 0:08:48.4]} 8. gxf3 {[%clk 0:09:34.3]}
8... e5 {[%clk 0:08:39.4]} 9. d5 {[%clk 0:09:10.2]} 9... Nf6 {[%clk 0:08:35.5]}
10. c5 {[%clk 0:08:39.3]} 10... O-O {[%clk 0:08:33.7]} 11. Rc1 {[%clk
0:08:10.2]} 11... a6 {[%clk 0:07:46.4]} 12. Bh3 {[%clk 0:07:36.2]} 12... Nbd7
{[%clk 0:07:02.3]} 13. Bxd7 {[%clk 0:07:09.4]} 13... Qxd7 {[%clk 0:06:58.4]} 14.
c6 {[%clk 0:06:34.6]} 14... Qh3 {[%clk 0:06:30.6]} 15. cxb7 {[%clk 0:06:13.2]}
15... Rab8 {[%clk 0:06:27.3]} 16. Ke2 {[%clk 0:05:32.1]} 16... Nh5 {[%clk
0:06:26.8]} 17. b3 {[%clk 0:04:22]} 17... f5 {[%clk 0:06:19.7]} 18. exf5 {[%clk
0:03:31.2]} 18... Rxf5 {[%clk 0:05:49.2]} 19. Qd3 {[%clk 0:03:08.8]} 19... Qxf3+
{[%clk 0:05:33.8]} 20. Kd2 {[%clk 0:03:08.4]} 20... Rxb7 {[%clk 0:05:30.9]} 21.
Qxa6 {[%clk 0:02:57.2]} 21... Rb8 {[%clk 0:05:15.2]} 22. Qe2 {[%clk 0:02:56.4]}
22... Qh3 {[%clk 0:05:04.6]} 23. Rcg1 {[%clk 0:02:45]} 23... Rbf8 {[%clk
0:04:17.7]} 24. Ne4 {[%clk 0:02:29.4]} 24... Nf4 {[%clk 0:03:30.1]} 25. Qg4
{[%clk 0:02:26.7]} 25... Qxg4 {[%clk 0:03:28.8]} 26. Rxg4 {[%clk 0:02:26.5]}
26... Nxd5 {[%clk 0:03:30.5]} 27. Rc1 {[%clk 0:01:53.6]} 27... Ra8 {[%clk
0:03:04.2]} 28. a4 {[%clk 0:01:29.9]} 28... Rb8 {[%clk 0:03:03.3]} 29. Nc3
{[%clk 0:00:59.9]} 29... Nxe3 {[%clk 0:02:21]} 30. fxe3 {[%clk 0:01:01.8]} 30...
Rxb3 {[%clk 0:02:22.3]} 31. Nd5 {[%clk 0:00:32.7]} 31... Rf2+ {[%clk 0:02:16.6]}
32. Ke1 {[%clk 0:00:32.8]} 32... Rxh2 {[%clk 0:02:17.7]} 33. Rgc4 {[%clk
0:00:16.9]} 33... Rbb2 {[%clk 0:02:10.9]} 0-1

[Event "GrandPrix_30.05"]
[Site "Chess.com"]
[Date "2020.05.30"]
[Round "4"]
[White "zuagroasta"]
[Black "KuzubovYuriy"]
[Result "0-1"]
[WhiteElo "2087"]
[BlackElo "2428"]
[TimeControl "600+2"]
[EndTime "9:52:14 PDT"]
[Termination "KuzubovYuriy won by resignation"]

1. d4 {[%clk 0:10:01.9]} 1... Nf6 {[%clk 0:09:56]} 2. c4 {[%clk 0:09:55]} 2...
e6 {[%clk 0:09:57.1]} 3. Nc3 {[%clk 0:09:54.6]} 3... Bb4 {[%clk 0:09:57.5]} 4.
e3 {[%clk 0:09:54.4]} 4... O-O {[%clk 0:09:57.7]} 5. Ne2 {[%clk 0:09:52.3]} 5...
c6 {[%clk 0:09:57.3]} 6. a3 {[%clk 0:09:15.6]} 6... Ba5 {[%clk 0:09:58.1]} 7. b4
{[%clk 0:08:56.4]} 7... Bc7 {[%clk 0:09:58.3]} 8. d5 {[%clk 0:08:38]} 8... cxd5
{[%clk 0:09:46.8]} 9. cxd5 {[%clk 0:08:37.4]} 9... exd5 {[%clk 0:09:47.5]} 10.
g3 {[%clk 0:08:32.5]} 10... Be5 {[%clk 0:09:08.6]} 11. Rb1 {[%clk 0:08:13.8]}
11... d6 {[%clk 0:09:02.6]} 12. Qd3 {[%clk 0:07:12]} 12... Nc6 {[%clk 0:08:02]}
13. Bg2 {[%clk 0:07:08.1]} 13... Ne7 {[%clk 0:08:01.6]} 14. Nd4 {[%clk
0:07:03.5]} 14... Bxd4 {[%clk 0:07:51.9]} 15. Qxd4 {[%clk 0:07:02.8]} 15... Bf5
{[%clk 0:07:50.7]} 16. Ra1 {[%clk 0:06:57.9]} 16... Rc8 {[%clk 0:04:53.8]} 17.
Bb2 {[%clk 0:05:44.3]} 17... Nc6 {[%clk 0:04:52.2]} 18. Qf4 {[%clk 0:05:30.5]}
18... Be6 {[%clk 0:04:49.5]} 19. Nb5 {[%clk 0:04:26.4]} 19... Ne4 {[%clk
0:04:05.1]} 20. Bxe4 {[%clk 0:03:46.9]} 20... dxe4 {[%clk 0:04:03.4]} 21. Nxd6
{[%clk 0:03:35.6]} 21... Rc7 {[%clk 0:01:46.5]} 22. Nxe4 {[%clk 0:02:15.7]}
22... f5 {[%clk 0:01:45]} 23. Nc5 {[%clk 0:02:13.1]} 23... Bd5 {[%clk
0:01:43.7]} 24. Rd1 {[%clk 0:02:04.7]} 24... g5 {[%clk 0:01:03.9]} 25. Rxd5
{[%clk 0:02:03.4]} 25... gxf4 {[%clk 0:01:02.2]} 26. Rxd8 {[%clk 0:02:03.6]}
26... Nxd8 {[%clk 0:01:02.6]} 27. gxf4 {[%clk 0:02:01.5]} 27... Rc6 {[%clk
0:00:47.4]} 28. Nd7 {[%clk 0:01:59.3]} 28... Rf7 {[%clk 0:00:46.9]} 29. Ne5
{[%clk 0:01:59.1]} 29... Rc2 {[%clk 0:00:47]} 30. Nxf7 {[%clk 0:01:56.7]} 30...
Kxf7 {[%clk 0:00:45.8]} 31. Bh8 {[%clk 0:01:35.3]} 31... Rc1+ {[%clk 0:00:45.8]}
32. Ke2 {[%clk 0:01:30.6]} 32... Rxh1 {[%clk 0:00:46.8]} 0-1

[Event "GrandPrix_30.05"]
[Site "Chess.com"]
[Date "2020.05.30"]
[Round "4"]
[White "Karacsonyi_Gellert"]
[Black "Igrok3069"]
[Result "0-1"]
[WhiteElo "2211"]
[BlackElo "2569"]
[TimeControl "600+2"]
[EndTime "9:52:24 PDT"]
[Termination "Igrok3069 won by resignation"]

1. e4 {[%clk 0:10:01.9]} 1... c5 {[%clk 0:10:00.1]} 2. Nf3 {[%clk 0:10:02.1]}
2... e6 {[%clk 0:10:00.8]} 3. d4 {[%clk 0:10:02.8]} 3... cxd4 {[%clk 0:10:01.8]}
4. Nxd4 {[%clk 0:10:04.7]} 4... Nf6 {[%clk 0:10:02.9]} 5. Nc3 {[%clk 0:10:01.6]}
5... Nc6 {[%clk 0:10:03]} 6. Ndb5 {[%clk 0:09:59.9]} 6... Bc5 {[%clk 0:10:02.4]}
7. Nd6+ {[%clk 0:09:58]} 7... Ke7 {[%clk 0:10:02.6]} 8. Bf4 {[%clk 0:09:59.4]}
8... e5 {[%clk 0:09:21.2]} 9. Nf5+ {[%clk 0:09:59.1]} 9... Kf8 {[%clk
0:09:20.9]} 10. Be3 {[%clk 0:10:00.1]} 10... Bb4 {[%clk 0:08:38.6]} 11. Bc4
{[%clk 0:08:39.9]} 11... d5 {[%clk 0:07:39.7]} 12. exd5 {[%clk 0:08:31.5]} 12...
Na5 {[%clk 0:07:31.9]} 13. Bd3 {[%clk 0:05:19.9]} 13... e4 {[%clk 0:07:30.3]}
14. Nxg7 {[%clk 0:03:53.9]} 14... Kxg7 {[%clk 0:07:01]} 15. Qd2 {[%clk
0:03:36.2]} 15... h6 {[%clk 0:05:33.7]} 16. Bxe4 {[%clk 0:02:59.4]} 16... Nc4
{[%clk 0:05:16]} 17. Qd4 {[%clk 0:02:59.7]} 17... Nxe3 {[%clk 0:05:03.9]} 18.
fxe3 {[%clk 0:03:00.8]} 18... Qb6 {[%clk 0:04:54.8]} 19. Qxb6 {[%clk 0:01:55.3]}
19... axb6 {[%clk 0:04:52.5]} 20. Bf3 {[%clk 0:01:55.1]} 20... Bf5 {[%clk
0:04:46.2]} 21. O-O {[%clk 0:01:38.1]} 21... Bxc2 {[%clk 0:04:31]} 22. Rac1
{[%clk 0:01:37.8]} 22... Bg6 {[%clk 0:04:30.5]} 23. Kf2 {[%clk 0:00:48.1]} 23...
Rhe8 {[%clk 0:04:25]} 24. Rfe1 {[%clk 0:00:46.7]} 24... Nd7 {[%clk 0:04:16.6]}
25. a3 {[%clk 0:00:45.1]} 25... Bc5 {[%clk 0:04:15.8]} 26. Nb5 {[%clk 0:00:33]}
26... Ne5 {[%clk 0:04:12.5]} 27. Be2 {[%clk 0:00:32.6]} 27... Rad8 {[%clk
0:04:11.4]} 28. Rcd1 {[%clk 0:00:24.3]} 28... Bc2 {[%clk 0:03:32.8]} 29. Rd2
{[%clk 0:00:21.2]} 29... Bxe3+ {[%clk 0:03:19.6]} 30. Kxe3 {[%clk 0:00:23.1]}
30... Nc4+ {[%clk 0:03:20.7]} 31. Kd4 {[%clk 0:00:24.5]} 31... Nxd2 {[%clk
0:03:21.5]} 32. Kc3 {[%clk 0:00:26]} 32... Bd1 {[%clk 0:02:42.7]} 33. Rxd1
{[%clk 0:00:03.4]} 33... Rxe2 {[%clk 0:02:41.7]} 34. Nd4 {[%clk 0:00:04.8]}
34... Ne4+ {[%clk 0:02:28.2]} 35. Kd3 {[%clk 0:00:05.4]} 35... Nf2+ {[%clk
0:02:25.3]} 36. Kxe2 {[%clk 0:00:04.7]} 36... Nxd1 {[%clk 0:02:26.3]} 37. Nf5+
{[%clk 0:00:05.8]} 37... Kf6 {[%clk 0:02:09.7]} 0-1

[Event "GrandPrix_30.05"]
[Site "Chess.com"]
[Date "2020.05.30"]
[Round "4"]
[White "SpasKozhuharov"]
[Black "SantoBlue"]
[Result "0-1"]
[WhiteElo "2182"]
[BlackElo "2510"]
[TimeControl "600+2"]
[EndTime "9:52:36 PDT"]
[Termination "SantoBlue won by checkmate"]

1. c4 {[%clk 0:10:01.7]} 1... e5 {[%clk 0:09:55.5]} 2. g3 {[%clk 0:09:40.6]}
2... Nf6 {[%clk 0:09:55.6]} 3. Bg2 {[%clk 0:09:40.5]} 3... c6 {[%clk 0:09:47.3]}
4. d4 {[%clk 0:09:38.2]} 4... e4 {[%clk 0:09:39.2]} 5. Nc3 {[%clk 0:09:35.3]}
5... d5 {[%clk 0:09:39.8]} 6. Bg5 {[%clk 0:09:27.2]} 6... Be7 {[%clk 0:09:34.4]}
7. cxd5 {[%clk 0:08:59.6]} 7... cxd5 {[%clk 0:09:34.4]} 8. Nh3 {[%clk
0:08:50.3]} 8... Nc6 {[%clk 0:08:45.7]} 9. Nf4 {[%clk 0:08:38.4]} 9... Be6
{[%clk 0:08:35.9]} 10. e3 {[%clk 0:08:27.2]} 10... Ng8 {[%clk 0:08:23]} 11. h4
{[%clk 0:06:46.3]} 11... Bxg5 {[%clk 0:07:29.8]} 12. hxg5 {[%clk 0:06:44.9]}
12... Nge7 {[%clk 0:07:14.8]} 13. Rc1 {[%clk 0:04:45.7]} 13... Rc8 {[%clk
0:05:55.5]} 14. Bh3 {[%clk 0:04:31]} 14... Bxh3 {[%clk 0:05:34.7]} 15. Rxh3
{[%clk 0:04:27.7]} 15... Qd7 {[%clk 0:05:34.3]} 16. Kf1 {[%clk 0:04:22.4]} 16...
Qf5 {[%clk 0:05:15.4]} 17. Kg2 {[%clk 0:04:17.6]} 17... Rd8 {[%clk 0:04:31.3]}
18. Qb3 {[%clk 0:03:57.3]} 18... Rd7 {[%clk 0:04:26.9]} 19. Na4 {[%clk
0:02:58.2]} 19... Qxg5 {[%clk 0:03:08.4]} 20. Nc5 {[%clk 0:02:50.9]} 20... Rd8
{[%clk 0:02:56.9]} 21. Nxb7 {[%clk 0:02:44.1]} 21... Rb8 {[%clk 0:02:54.8]} 22.
Nd6+ {[%clk 0:02:27.5]} 22... Kd7 {[%clk 0:02:53.7]} 23. Nxf7 {[%clk 0:02:07.6]}
23... Qf5 {[%clk 0:02:34.8]} 24. Nh6 {[%clk 0:01:15.2]} 24... Qxh3+ {[%clk
0:02:05.4]} 25. Kxh3 {[%clk 0:01:01.1]} 25... Rxb3 {[%clk 0:02:07.3]} 26. axb3
{[%clk 0:01:00.5]} 26... gxh6 {[%clk 0:02:08.5]} 27. Kg4 {[%clk 0:00:46]} 27...
Rg8+ {[%clk 0:02:05]} 28. Kh5 {[%clk 0:00:45.8]} 28... Nf5 {[%clk 0:02:04.7]}
29. Nh3 {[%clk 0:00:41.7]} 29... Rg6 {[%clk 0:01:51.2]} 30. Rc5 {[%clk
0:00:33.8]} 30... Nce7 {[%clk 0:01:42.5]} 31. g4 {[%clk 0:00:30.1]} 31... Ng7+
{[%clk 0:01:43.2]} 32. Kh4 {[%clk 0:00:30.4]} 32... h5 {[%clk 0:01:40.6]} 33.
Ng5 {[%clk 0:00:14.3]} 33... hxg4 {[%clk 0:01:40.1]} 34. Nxh7 {[%clk 0:00:14.6]}
34... Nef5# {[%clk 0:01:41.5]} 0-1

[Event "GrandPrix_30.05"]
[Site "Chess.com"]
[Date "2020.05.30"]
[Round "4"]
[White "NikolaN98"]
[Black "fm_magua"]
[Result "0-1"]
[WhiteElo "2102"]
[BlackElo "1904"]
[TimeControl "600+2"]
[EndTime "9:52:36 PDT"]
[Termination "fm_magua won by resignation"]

1. e4 {[%clk 0:10:01.9]} 1... c5 {[%clk 0:10:00.6]} 2. Nc3 {[%clk 0:10:02.4]}
2... Nc6 {[%clk 0:10:01.9]} 3. f4 {[%clk 0:10:03.5]} 3... g6 {[%clk 0:10:02.8]}
4. Nf3 {[%clk 0:10:04.7]} 4... Bg7 {[%clk 0:10:04.2]} 5. Bb5 {[%clk 0:10:05.8]}
5... Nf6 {[%clk 0:10:01.7]} 6. Ke2 {[%clk 0:09:51]} 6... Nd4+ {[%clk 0:09:51.2]}
7. Kf1 {[%clk 0:09:03.5]} 7... Nxb5 {[%clk 0:09:42.4]} 8. Nxb5 {[%clk
0:09:04.1]} 8... Nxe4 {[%clk 0:09:41]} 9. Qe2 {[%clk 0:08:44.2]} 9... d5 {[%clk
0:09:37.3]} 10. d3 {[%clk 0:08:42.1]} 10... Nd6 {[%clk 0:09:28.5]} 11. Nc3
{[%clk 0:08:41.5]} 11... Nf5 {[%clk 0:09:28.8]} 12. Bd2 {[%clk 0:08:39.7]} 12...
O-O {[%clk 0:09:26.5]} 13. Re1 {[%clk 0:08:39.8]} 13... Rb8 {[%clk 0:08:46.3]}
14. Qf2 {[%clk 0:08:34.7]} 14... b6 {[%clk 0:07:39.7]} 15. Ne2 {[%clk
0:07:27.7]} 15... Ba6 {[%clk 0:07:27.8]} 16. g4 {[%clk 0:07:23.6]} 16... Nd6
{[%clk 0:07:25.1]} 17. Kg2 {[%clk 0:05:34.2]} 17... d4 {[%clk 0:07:09.1]} 18.
Ng3 {[%clk 0:04:24]} 18... f5 {[%clk 0:07:06.2]} 19. g5 {[%clk 0:04:24.2]} 19...
Bb7 {[%clk 0:06:58.9]} 20. h4 {[%clk 0:04:23.4]} 20... Nf7 {[%clk 0:06:35.6]}
21. h5 {[%clk 0:02:20.7]} 21... e5 {[%clk 0:06:35.7]} 22. hxg6 {[%clk
0:02:21.5]} 22... hxg6 {[%clk 0:06:35.3]} 23. Kf1 {[%clk 0:02:04.7]} 23... Bxf3
{[%clk 0:06:30.1]} 24. Qxf3 {[%clk 0:02:03.6]} 24... exf4 {[%clk 0:06:26.2]} 25.
Bxf4 {[%clk 0:01:48.4]} 25... Nxg5 {[%clk 0:06:03.8]} 26. Qg2 {[%clk 0:01:37.8]}
26... Rc8 {[%clk 0:05:48.3]} 27. Nh5 {[%clk 0:01:01.3]} 27... gxh5 {[%clk
0:05:10]} 28. Bxg5 {[%clk 0:01:02.2]} 28... Qd7 {[%clk 0:05:11.4]} 29. Re7
{[%clk 0:00:53.4]} 29... Qc6 {[%clk 0:05:11.3]} 30. Rg1 {[%clk 0:00:12.8]} 30...
Qxg2+ {[%clk 0:05:06.9]} 31. Rxg2 {[%clk 0:00:14.7]} 31... Rf7 {[%clk
0:05:03.9]} 32. Bf6 {[%clk 0:00:12.3]} 32... Rxe7 {[%clk 0:05:03.1]} 33. Bxe7
{[%clk 0:00:11.7]} 33... Kf7 {[%clk 0:05:03.4]} 34. Bd6 {[%clk 0:00:12.3]} 34...
Bf6 {[%clk 0:04:46]} 35. Bf4 {[%clk 0:00:06.9]} 35... b5 {[%clk 0:04:33]} 36. b3
{[%clk 0:00:07.4]} 36... c4 {[%clk 0:04:32.1]} 37. bxc4 {[%clk 0:00:07.9]} 37...
bxc4 {[%clk 0:04:34]} 38. Ke2 {[%clk 0:00:09.4]} 38... cxd3+ {[%clk 0:04:27.6]}
39. Kxd3 {[%clk 0:00:09.5]} 39... Rc3+ {[%clk 0:04:27.7]} 40. Kd2 {[%clk
0:00:11]} 40... Ra3 {[%clk 0:04:18.3]} 41. Rg1 {[%clk 0:00:06]} 41... Rxa2
{[%clk 0:04:07.1]} 42. Rb1 {[%clk 0:00:06.5]} 42... Ra6 {[%clk 0:04:04.4]} 43.
Rb7+ {[%clk 0:00:06.5]} 43... Kg6 {[%clk 0:04:04.8]} 44. Bb8 {[%clk 0:00:07.2]}
44... h4 {[%clk 0:03:59.6]} 45. Bxa7 {[%clk 0:00:07.2]} 45... h3 {[%clk
0:03:39.4]} 46. Bb8 {[%clk 0:00:07.3]} 46... Ra3 {[%clk 0:03:26.5]} 47. Rb3
{[%clk 0:00:04.3]} 47... Bg5+ {[%clk 0:03:12]} 48. Ke2 {[%clk 0:00:03.7]} 48...
Rxb3 {[%clk 0:03:08.8]} 49. cxb3 {[%clk 0:00:04.6]} 49... f4 {[%clk 0:03:09.9]}
50. Kf3 {[%clk 0:00:04.3]} 50... d3 {[%clk 0:03:04.9]} 51. Be5 {[%clk
0:00:02.2]} 51... d2 {[%clk 0:03:04.5]} 52. Ke2 {[%clk 0:00:03.5]} 52... h2
{[%clk 0:03:05.3]} 0-1

[Event "GrandPrix_30.05"]
[Site "Chess.com"]
[Date "2020.05.30"]
[Round "4"]
[White "Gabrielian_Artur"]
[Black "fujiwara_hoga"]
[Result "1-0"]
[WhiteElo "2261"]
[BlackElo "2122"]
[TimeControl "600+2"]
[EndTime "9:52:39 PDT"]
[Termination "Gabrielian_Artur won by resignation"]

1. e4 {[%clk 0:10:01.9]} 1... e5 {[%clk 0:09:58.8]} 2. Nc3 {[%clk 0:10:01.7]}
2... Nf6 {[%clk 0:09:50.8]} 3. g3 {[%clk 0:10:02.3]} 3... Nc6 {[%clk 0:09:43.3]}
4. Bg2 {[%clk 0:10:02.5]} 4... Bc5 {[%clk 0:09:43.1]} 5. Nge2 {[%clk 0:09:59.7]}
5... a6 {[%clk 0:09:41.9]} 6. d3 {[%clk 0:09:59.3]} 6... d6 {[%clk 0:09:41.7]}
7. O-O {[%clk 0:09:59.7]} 7... O-O {[%clk 0:09:42]} 8. h3 {[%clk 0:09:58.9]}
8... Be6 {[%clk 0:09:00.8]} 9. Kh2 {[%clk 0:09:59.1]} 9... d5 {[%clk 0:08:06.8]}
10. f4 {[%clk 0:09:59.5]} 10... dxe4 {[%clk 0:07:56.4]} 11. Nxe4 {[%clk
0:09:59.3]} 11... Nxe4 {[%clk 0:07:52.2]} 12. Bxe4 {[%clk 0:10:00.2]} 12... Bd5
{[%clk 0:07:30.4]} 13. Nc3 {[%clk 0:10:00.4]} 13... Bxe4 {[%clk 0:07:30]} 14.
Nxe4 {[%clk 0:10:00.8]} 14... Bb6 {[%clk 0:07:20.7]} 15. f5 {[%clk 0:10:01.7]}
15... f6 {[%clk 0:07:20.2]} 16. g4 {[%clk 0:10:01.4]} 16... Qd7 {[%clk
0:06:56.3]} 17. Qf3 {[%clk 0:09:52.9]} 17... Nd4 {[%clk 0:06:54.6]} 18. Qg2
{[%clk 0:09:53.7]} 18... Kh8 {[%clk 0:06:39.3]} 19. c3 {[%clk 0:09:51.7]} 19...
Nb5 {[%clk 0:06:30.5]} 20. Rf3 {[%clk 0:09:16.1]} 20... Nd6 {[%clk 0:06:22.2]}
21. g5 {[%clk 0:08:52.6]} 21... Nxe4 {[%clk 0:05:58.2]} 22. dxe4 {[%clk
0:08:52.3]} 22... Rad8 {[%clk 0:05:57.2]} 23. Rg3 {[%clk 0:08:37.4]} 23... Rg8
{[%clk 0:04:38]} 24. g6 {[%clk 0:07:58.6]} 24... Rge8 {[%clk 0:02:52.3]} 25.
gxh7 {[%clk 0:06:48.3]} 25... Re7 {[%clk 0:02:52]} 26. Bh6 {[%clk 0:04:53.6]}
26... Kxh7 {[%clk 0:02:32.4]} 27. Rd1 {[%clk 0:04:53.2]} 27... gxh6 {[%clk
0:01:58.5]} 28. Rxd7 {[%clk 0:04:52.4]} 28... Rexd7 {[%clk 0:01:58.4]} 29. Qf3
{[%clk 0:04:52]} 29... Rd2+ {[%clk 0:01:42.2]} 30. Rg2 {[%clk 0:04:52.9]} 30...
Rxg2+ {[%clk 0:01:19.3]} 31. Qxg2 {[%clk 0:04:43.2]} 31... Rg8 {[%clk
0:01:19.3]} 32. Qd2 {[%clk 0:04:43.8]} 32... Rg7 {[%clk 0:01:08.9]} 33. Qd8
{[%clk 0:04:29]} 33... Rf7 {[%clk 0:00:57.9]} 34. h4 {[%clk 0:04:24]} 34... Be3
{[%clk 0:00:47.7]} 35. Kg2 {[%clk 0:04:17.8]} 35... Bf4 {[%clk 0:00:32.9]} 36.
Kf3 {[%clk 0:04:17.6]} 36... b6 {[%clk 0:00:23.1]} 37. Kg4 {[%clk 0:04:14.1]}
37... a5 {[%clk 0:00:08.9]} 38. Kh5 {[%clk 0:04:12.2]} 38... Bc1 {[%clk
0:00:06.1]} 39. b3 {[%clk 0:04:06.5]} 39... Bf4 {[%clk 0:00:06.1]} 40. a4 {[%clk
0:04:05.4]} 40... Kg7 {[%clk 0:00:03.8]} 41. b4 {[%clk 0:03:59.3]} 41... axb4
{[%clk 0:00:04.7]} 42. cxb4 {[%clk 0:04:00.5]} 42... c5 {[%clk 0:00:03]} 43.
Qxb6 {[%clk 0:03:48.2]} 43... cxb4 {[%clk 0:00:02.9]} 44. Qxb4 {[%clk
0:03:45.6]} 44... Rc7 {[%clk 0:00:03.8]} 45. a5 {[%clk 0:03:40.3]} 45... Rf7
{[%clk 0:00:03.6]} 46. a6 {[%clk 0:03:40.7]} 46... Be3 {[%clk 0:00:04.7]} 47.
Qb3 {[%clk 0:03:39.8]} 47... Bd4 {[%clk 0:00:03.8]} 48. Qg3+ {[%clk 0:03:40.2]}
48... Kf8 {[%clk 0:00:03.4]} 49. Kxh6 {[%clk 0:03:33.4]} 49... Ke7 {[%clk
0:00:03.5]} 50. Qg8 {[%clk 0:03:21.6]} 50... Rf8 {[%clk 0:00:03.7]} 51. Qe6+
{[%clk 0:03:19.5]} 51... Kd8 {[%clk 0:00:05.2]} 52. Kg7 {[%clk 0:03:11.7]} 1-0

[Event "GrandPrix_30.05"]
[Site "Chess.com"]
[Date "2020.05.30"]
[Round "4"]
[White "PavelShkapenko"]
[Black "Anton_Demchenko"]
[Result "0-1"]
[WhiteElo "2424"]
[BlackElo "2651"]
[TimeControl "600+2"]
[EndTime "9:52:41 PDT"]
[Termination "Anton_Demchenko won by resignation"]

1. e4 {[%clk 0:09:47]} 1... e5 {[%clk 0:10:00.2]} 2. Nf3 {[%clk 0:09:47.4]} 2...
Nc6 {[%clk 0:10:00.9]} 3. Bc4 {[%clk 0:09:48.4]} 3... Nf6 {[%clk 0:10:01.4]} 4.
Ng5 {[%clk 0:09:47.5]} 4... d5 {[%clk 0:10:01.9]} 5. exd5 {[%clk 0:09:49.1]}
5... Na5 {[%clk 0:10:02.7]} 6. Bb5+ {[%clk 0:09:50.6]} 6... c6 {[%clk 0:10:04]}
7. dxc6 {[%clk 0:09:52.2]} 7... bxc6 {[%clk 0:10:05.9]} 8. Bd3 {[%clk
0:09:53.7]} 8... Nd5 {[%clk 0:09:58.2]} 9. Nf3 {[%clk 0:09:53.9]} 9... Bd6
{[%clk 0:09:58.7]} 10. O-O {[%clk 0:09:54.3]} 10... O-O {[%clk 0:10:00]} 11. Re1
{[%clk 0:09:54]} 11... f5 {[%clk 0:09:57.8]} 12. Nxe5 {[%clk 0:09:05.1]} 12...
Qf6 {[%clk 0:09:57.8]} 13. Nc4 {[%clk 0:08:16.4]} 13... Nxc4 {[%clk 0:09:56.3]}
14. Bxc4 {[%clk 0:08:17.6]} 14... Qh4 {[%clk 0:09:58]} 15. Bxd5+ {[%clk
0:08:17]} 15... cxd5 {[%clk 0:09:59.9]} 16. g3 {[%clk 0:07:56.5]} 16... Qh3
{[%clk 0:09:43.5]} 17. f4 {[%clk 0:06:38.6]} 17... d4 {[%clk 0:05:40.8]} 18. Qf3
{[%clk 0:06:25]} 18... Rb8 {[%clk 0:05:24.6]} 19. Qg2 {[%clk 0:05:02.5]} 19...
Qh5 {[%clk 0:05:22.2]} 20. Qe2 {[%clk 0:04:43.3]} 20... Qg6 {[%clk 0:04:30]} 21.
d3 {[%clk 0:04:37.4]} 21... Bd7 {[%clk 0:03:58.5]} 22. Qf2 {[%clk 0:03:21.6]}
22... Bc6 {[%clk 0:03:22.1]} 23. Nd2 {[%clk 0:03:16.9]} 23... Qf7 {[%clk
0:03:06.4]} 24. Nf3 {[%clk 0:02:21.6]} 24... Qd5 {[%clk 0:03:06.8]} 25. Kg2
{[%clk 0:02:22.6]} 25... h6 {[%clk 0:02:42.7]} 26. b3 {[%clk 0:02:06]} 26... g5
{[%clk 0:02:43.5]} 27. fxg5 {[%clk 0:01:58.9]} 27... hxg5 {[%clk 0:01:49.5]} 28.
Bxg5 {[%clk 0:01:44.9]} 28... Rb7 {[%clk 0:01:50.7]} 29. Rf1 {[%clk 0:01:19.1]}
29... f4 {[%clk 0:01:25.6]} 30. gxf4 {[%clk 0:00:34.8]} 30... Bxf4 {[%clk
0:01:26.4]} 31. Bxf4 {[%clk 0:00:35.7]} 31... Rxf4 {[%clk 0:01:27]} 32. Qg3+
{[%clk 0:00:10.8]} 32... Rg7 {[%clk 0:01:27.2]} 33. Qxg7+ {[%clk 0:00:11.7]}
33... Kxg7 {[%clk 0:01:28.7]} 0-1

[Event "GrandPrix_30.05"]
[Site "Chess.com"]
[Date "2020.05.30"]
[Round "4"]
[White "Flawless_Fighter"]
[Black "troisi"]
[Result "0-1"]
[WhiteElo "2166"]
[BlackElo "1710"]
[TimeControl "600+2"]
[EndTime "9:52:46 PDT"]
[Termination "troisi won by resignation"]

1. e4 {[%clk 0:10:01.9]} 1... e5 {[%clk 0:09:54.8]} 2. Nf3 {[%clk 0:10:02.8]}
2... Nc6 {[%clk 0:09:39.3]} 3. Bb5 {[%clk 0:09:57.8]} 3... a6 {[%clk 0:09:38.5]}
4. Ba4 {[%clk 0:09:58.8]} 4... Nf6 {[%clk 0:09:39.1]} 5. O-O {[%clk 0:09:59.2]}
5... b5 {[%clk 0:09:40.8]} 6. Bb3 {[%clk 0:09:59.2]} 6... Bc5 {[%clk 0:09:42.4]}
7. c3 {[%clk 0:09:58.9]} 7... d6 {[%clk 0:09:43.8]} 8. d4 {[%clk 0:10:00.4]}
8... Bb6 {[%clk 0:09:45]} 9. a4 {[%clk 0:10:02]} 9... Bb7 {[%clk 0:09:45.6]} 10.
Bg5 {[%clk 0:09:53.3]} 10... exd4 {[%clk 0:09:41.9]} 11. cxd4 {[%clk 0:09:38.4]}
11... h6 {[%clk 0:09:41.9]} 12. Bxf6 {[%clk 0:08:58]} 12... Qxf6 {[%clk
0:09:43.8]} 13. Bd5 {[%clk 0:08:57.3]} 13... O-O {[%clk 0:09:38.4]} 14. Na3
{[%clk 0:07:44.9]} 14... Rfb8 {[%clk 0:09:17.1]} 15. axb5 {[%clk 0:07:38]} 15...
axb5 {[%clk 0:09:14.5]} 16. Nxb5 {[%clk 0:06:26.4]} 16... Rxa1 {[%clk
0:06:25.5]} 17. Qxa1 {[%clk 0:06:26.6]} 17... Nxd4 {[%clk 0:06:20.5]} 18. Nbxd4
{[%clk 0:04:06.3]} 18... Bxd5 {[%clk 0:06:18.3]} 19. exd5 {[%clk 0:04:02.7]}
19... Bxd4 {[%clk 0:06:17.4]} 20. Qc1 {[%clk 0:03:45.5]} 20... Bc5 {[%clk
0:06:08.9]} 21. Ne1 {[%clk 0:03:05.2]} 21... Qd4 {[%clk 0:05:37]} 22. b4 {[%clk
0:02:35.9]} 22... Bb6 {[%clk 0:05:03.5]} 23. Qc6 {[%clk 0:02:13.7]} 23... Qxb4
{[%clk 0:04:57.9]} 24. Nc2 {[%clk 0:02:08.4]} 24... Qd2 {[%clk 0:04:55.8]} 25.
g3 {[%clk 0:01:59.4]} 25... Kf8 {[%clk 0:04:48.3]} 26. Na3 {[%clk 0:01:51.2]}
26... Qd4 {[%clk 0:02:56.3]} 27. Nc4 {[%clk 0:01:29]} 27... Qc5 {[%clk
0:02:54.3]} 28. Qxc5 {[%clk 0:00:46]} 28... Bxc5 {[%clk 0:02:56.2]} 29. Rc1
{[%clk 0:00:46.8]} 29... Rb3 {[%clk 0:02:44.5]} 30. Kf1 {[%clk 0:00:31.7]} 30...
Rd3 {[%clk 0:02:43.5]} 31. Ne3 {[%clk 0:00:31.7]} 31... Bxe3 {[%clk 0:02:37.1]}
32. fxe3 {[%clk 0:00:33.6]} 32... Rxe3 {[%clk 0:02:35.1]} 33. Rxc7 {[%clk
0:00:25.6]} 33... Rd3 {[%clk 0:02:35.6]} 34. Kf2 {[%clk 0:00:17.9]} 34... g6
{[%clk 0:02:33.2]} 35. g4 {[%clk 0:00:18]} 35... Rxd5 {[%clk 0:02:32.8]} 36. h4
{[%clk 0:00:18.4]} 36... Kg7 {[%clk 0:02:32.5]} 37. Kf3 {[%clk 0:00:19.6]} 37...
Rd4 {[%clk 0:02:32]} 38. Rd7 {[%clk 0:00:20.1]} 38... Kf6 {[%clk 0:02:31]} 39.
Ra7 {[%clk 0:00:11.2]} 39... Rd1 {[%clk 0:02:24.9]} 40. g5+ {[%clk 0:00:09.1]}
40... hxg5 {[%clk 0:02:25]} 41. hxg5+ {[%clk 0:00:11]} 41... Ke6 {[%clk
0:02:25.9]} 42. Kf4 {[%clk 0:00:07.3]} 42... Rd4+ {[%clk 0:02:25.9]} 43. Kf3
{[%clk 0:00:07.8]} 43... Rd5 {[%clk 0:02:27.8]} 44. Kf4 {[%clk 0:00:07.9]} 44...
Rf5+ {[%clk 0:02:28.8]} 45. Kg4 {[%clk 0:00:09.4]} 45... d5 {[%clk 0:02:28.8]}
46. Ra6+ {[%clk 0:00:09.7]} 46... Ke5 {[%clk 0:02:30]} 47. Ra7 {[%clk
0:00:09.4]} 47... Ke4 {[%clk 0:02:29.8]} 48. Re7+ {[%clk 0:00:10]} 48... Kd3
{[%clk 0:02:30.7]} 0-1